bitfinex-derivatives/quotes_SOLF0:USTF0_20251209
["timestamp","ask_amount","ask_price","bid_price","bid_amount"]
[1765323154386,3.26,138.32,138.28,3.25]
[1765323155189,3.26,138.31,138.28,3.25]
[1765323155389,3.3128441,138.31,138.28,3.30300113]
[1765323155590,6.5071,138.3,138.28,3.30300113]
[1765323156195,9.7671,138.3,138.28,0.05300113]
[1765323156596,6.5071,138.3,138.28,0.05300113]
[1765323156791,9.7671,138.3,138.28,3.30300113]
[1765323156992,0.0528441,138.31,138.28,3.30300113]
[1765323160096,0.0528441,138.31,138.28,9.81090113]
[1765323160289,0.0528441,138.31,138.29,3.25]
[1765323161201,3.3128441,138.31,138.29,3.25]
[1765323161498,3.3128441,138.31,138.28,3.30300113]
[1765323166702,0.0528441,138.31,138.28,3.30300113]
[1765323167603,0.0528441,138.31,138.3,9.757]
[1765323168505,16.63,138.33,138.32,9.7561]
[1765323168700,16.63,138.33,138.32,71.2161]
[1765323170009,16.63,138.33,138.32,61.46]
[1765323170205,16.63,138.33,138.32,64.71]
[1765323173604,16.63,138.33,138.32,71.2161]
[1765323178201,16.63,138.33,138.32,9.7561]
[1765323178509,16.63,138.33,138.32,71.2161]
[1765323180507,13.28,138.33,138.32,71.2161]
[1765323180702,3.06,138.39,138.34,1.83]
[1765323181108,3.06,138.39,138.36,6.5037]
[1765323181411,3.06,138.44,138.38,1.83]
[1765323181914,3.06,138.41,138.4,0.04632067]
[1765323185417,3.1075936,138.42,138.4,0.04632067]
[1765323191920,3.1075936,138.42,138.4,1.88632067]
[1765323192113,0.0475936,138.42,138.4,1.88632067]
[1765323192311,0.0475936,138.42,138.4,8.38862067]
[1765323192510,0.0475936,138.42,138.41,1.84]
[1765323194818,0.0475936,138.42,138.41,63.28]
[1765323196414,0.0475936,138.42,138.41,69.7818]
[1765323198118,3.34,138.46,138.43,8.3409]
[1765323198729,3.34,138.46,138.44,8.3403]
[1765323199025,18.54,138.47,138.44,8.3403]
[1765323199227,18.59110787,138.47,138.44,8.39438799]
[1765323199925,3.34,138.46,138.44,8.39438799]
[1765323200228,3.34,138.46,138.44,0.05408799]
[1765323203825,15.25110787,138.47,138.39,69.7623]
[1765323203826,3.34,138.44,138.39,69.7623]
[1765323204021,3.34,138.44,138.4,1.84]
[1765323204827,3.38917675,138.43,138.41,0.05472675]
[1765323209032,0.04917675,138.43,138.41,1.89472675]
[1765323209232,3.31917675,138.43,138.41,1.89472675]
[1765323210529,3.31917675,138.43,138.41,8.39652675]
[1765323210831,0.04917675,138.43,138.41,8.39652675]
[1765323211127,3.31917675,138.43,138.41,8.39652675]
[1765323212730,0.04917675,138.43,138.42,8.3414]
[1765323215731,15.2,138.47,138.44,1.84]
[1765323215921,15.2,138.47,138.45,1.84]
[1765323216530,15.2,138.47,138.45,8.34]
[1765323216731,15.24922703,138.47,138.45,8.39501562]
[1765323217435,18.51922703,138.47,138.45,8.39501562]
[1765323217634,18.51922703,138.47,138.45,6.55501562]
[1765323220528,3.27,138.46,138.45,6.55501562]
[1765323222838,3.27,138.46,138.45,0.05501562]
[1765323231238,6.4995,138.46,138.42,61.4]
[1765323231546,3.27,138.45,138.42,61.4]
[1765323231936,3.27,138.43,138.42,61.4]
[1765323233246,0.05428977,138.44,138.43,1.84]
[1765323234344,0.05428977,138.44,138.43,8.3409]
[1765323237349,3.32428977,138.44,138.42,61.4]
[1765323239251,3.25,138.43,138.42,61.4]
[1765323240743,9.7509,138.43,138.42,61.4]
[1765323240949,3.25,138.42,138.41,0.05324571]
[1765323241447,9.7514,138.42,138.41,0.05324571]
[1765323243843,6.5009,138.43,138.41,1.89324571]
[1765323245450,17.69428977,138.44,138.41,1.89324571]
[1765323249057,17.69428977,138.44,138.42,1.83]
[1765323249960,17.69428977,138.44,138.43,63.25]
[1765323253154,17.69428977,138.44,138.43,72.29958644]
[1765323258263,17.69428977,138.44,138.43,73.73958644]
[1765323258863,17.69428977,138.44,138.43,72.29958644]
[1765323259667,17.09524745,138.44,138.43,73.73958644]
[1765323260067,6.12954745,138.44,138.43,73.73958644]
[1765323260268,4.745e-05,138.44,138.43,73.73958644]
[1765323261962,4.745e-05,138.44,138.43,72.29958644]
[1765323263868,4.745e-05,138.44,138.43,134.29958644]
[1765323264266,4.745e-05,138.44,138.43,135.73958644]
[1765323264571,0.05000996,138.45,138.43,135.73958644]
[1765323264572,5.741e-05,138.45,138.44,8.3304]
[1765323278088,13.9100903,138.5,138.49,8.2781]
[1765323278089,9.03e-05,138.5,138.49,8.2781]
[1765323278281,3.07,138.56,138.51,1.78]
[1765323278588,3.07,138.56,138.52,61.38]
[1765323279082,3.07,138.54,138.53,0.04609757]
[1765323279283,3.07,138.54,138.52,58.79017462]
[1765323280284,3.12299975,138.54,138.52,58.84239027]
[1765323282484,3.12299975,138.54,138.52,0.05221565]
[1765323282690,3.12299975,138.54,138.52,61.43221565]
[1765323283195,3.07,138.53,138.52,61.43221565]
[1765323283786,3.07,138.53,138.52,58.08221565]
[1765323287299,3.07,138.53,138.51,0.04575937]
[1765323289097,6.54879975,138.54,138.52,3.28]
[1765323289098,0.05299975,138.54,138.52,3.28]
[1765323292105,0.05299975,138.54,138.53,2.54868644]
[1765323294107,3.12299975,138.54,138.51,5.87444581]
[1765323294604,3.07,138.53,138.51,2.59444581]
[1765323294808,3.07,138.53,138.51,0.04575937]
[1765323295204,9.5667,138.52,138.51,0.04575937]
[1765323296806,0.05299975,138.54,138.51,3.32575937]
[1765323301312,3.31299975,138.54,138.51,0.04575937]
[1765323301520,3.26,138.51,138.48,61.38]
[1765323302106,3.26,138.49,138.48,61.38]
[1765323311315,0.04637865,138.5,138.49,3.1]
[1765323313015,6.54397865,138.5,138.48,64.48]
[1765323315117,3.26,138.49,138.48,61.38]
[1765323316222,9.7581,138.49,138.48,61.38]
[1765323317324,6.4986,138.48,138.47,0.05109939]
[1765323319219,9.7586,138.48,138.47,0.05109939]
[1765323319415,3.26,138.46,138.43,61.38]
[1765323319819,3.26,138.46,138.43,64.48]
[1765323320319,3.31011601,138.46,138.43,64.53164283]
[1765323320523,6.5004,138.44,138.43,64.53164283]
[1765323323029,0.05011601,138.46,138.44,3.1]
[1765323323522,3.31011601,138.46,138.44,3.1]
[1765323325026,0.05011601,138.46,138.44,3.1]
[1765323326526,3.26,138.51,138.44,3.1]
[1765323327233,3.26,138.51,138.46,3.1]
[1765323327732,0.05049739,138.5,138.48,3.1]
[1765323328035,3.31049739,138.5,138.47,0.04885855]
[1765323328334,0.05049739,138.5,138.47,3.14885855]
[1765323332835,0.05049739,138.5,138.48,3.33]
[1765323333233,0.05049739,138.5,138.48,9.8286]
[1765323333536,0.05049739,138.5,138.49,3.33]
[1765323337335,0.05049739,138.5,138.49,9.8281]
[1765323338345,0.05049739,138.5,138.49,3.33]
[1765323341141,0.05049739,138.5,138.49,9.8281]
[1765323357546,3.33049739,138.5,138.48,67.8785]
[1765323357749,3.33049739,138.5,138.48,71.2085]
[1765323358641,3.33049739,138.5,138.48,64.71]
[1765323360351,0.05049739,138.5,138.49,3.3]
[1765323361249,0.05049739,138.5,138.49,9.7981]
[1765323368649,3.25049739,138.5,138.47,0.04885855]
[1765323369362,0.05049739,138.5,138.47,3.10885855]
[1765323371452,0.05049739,138.5,138.48,6.4984]
[1765323371652,0.05049739,138.5,138.47,3.10885855]
[1765323371653,0.05049739,138.5,138.49,64.44]
[1765323372455,0.05049739,138.5,138.49,70.9381]
[1765323378767,3.25049739,138.5,138.47,3.10885855]
[1765323379575,3.25049739,138.5,138.47,0.04885855]
[1765323381261,3.2,138.49,138.47,0.04885855]
[1765323382161,14.73,138.52,138.49,3.06]
[1765323382361,14.73,138.52,138.47,0.04885855]
[1765323382362,14.73,138.52,138.51,5.6070298]
[1765323382669,14.73,138.52,138.51,12.1042298]
[1765323384277,0.05451561,138.53,138.52,9.5567]
[1765323386069,0.05451561,138.53,138.52,3.06]
[1765323396578,3.14451561,138.53,138.51,3.19]
[1765323398082,0.05451561,138.53,138.51,3.19]
[1765323401284,0.05451561,138.53,138.52,9.6867]
[1765323401585,3.09,138.57,138.53,3.19]
[1765323401778,3.09,138.57,138.51,3.19]
[1765323402180,3.09,138.56,138.52,3.19]
[1765323402480,3.13822763,138.55,138.53,3.23896894]
[1765323402778,3.13822763,138.55,138.53,0.04896894]
[1765323404377,3.13822763,138.55,138.53,3.23896894]
[1765323405081,0.04822763,138.55,138.53,3.23896894]
[1765323406371,3.13822763,138.55,138.53,3.23896894]
[1765323406572,3.13822763,138.55,138.53,9.73516894]
[1765323407186,0.04822763,138.55,138.54,3.19]
[1765323409179,0.04822763,138.55,138.54,9.6857]
[1765323411700,0.04822763,138.55,138.54,71.0457]
[1765323414998,3.09,138.58,138.56,3.19]
[1765323415889,188.11227051,138.59,138.56,3.19]
[1765323416194,0.05212503,138.58,138.56,3.24316725]
[1765323416692,0.05212503,138.58,138.57,3.19]
[1765323424501,3.35212503,138.58,138.52,3.18]
[1765323424797,3.3,138.54,138.5,3.18]
[1765323425693,3.21066,138.53,138.51,3.23015438]
[1765323427403,0.05066,138.53,138.51,3.23015438]
[1765323428194,0.05066,138.53,138.52,3.26]
[1765323429097,0.05066,138.53,138.52,9.7567]
[1765323430207,0.05066,138.53,138.52,3.26]
[1765323432606,3.16,138.58,138.53,3.26]
[1765323432904,3.16,138.58,138.55,3.26]
[1765323433103,19.78,138.59,138.55,3.26]
[1765323433500,0.05039171,138.58,138.56,3.3089247]
[1765323434892,3.21039171,138.58,138.56,3.3089247]
[1765323435803,0.05039171,138.58,138.56,3.3089247]
[1765323444921,3.38211237,138.6,138.56,3.3089247]
[1765323445217,3.16,138.66,138.58,101.0158]
[1765323445413,3.16,138.66,138.59,162.3682]
[1765323445612,170.76332384,138.68,138.62,6.4919]
[1765323446019,3.20850491,138.66,138.64,0.04645973]
[1765323453425,0.04850491,138.66,138.64,61.38645973]
[1765323454531,0.04850491,138.66,138.64,67.87735973]
[1765323456133,3.10850491,138.66,138.64,61.38645973]
[1765323458335,3.10850491,138.66,138.64,67.87745973]
[1765323458639,0.04850491,138.66,138.64,67.87745973]
[1765323460533,0.04850491,138.66,138.65,6.4906]
[1765323465140,0.04850491,138.66,138.64,61.38645973]
[1765323466843,14.06,138.7,138.64,62.82645973]
[1765323467044,14.06,138.7,138.64,162.35625973]
[1765323467846,0.04959478,138.68,138.64,162.35625973]
[1765323468044,0.04959478,138.68,138.66,6.4898]
[1765323470448,3.10959478,138.68,138.64,67.87725973]
[1765323472142,3.10959478,138.68,138.64,61.38645973]
[1765323473050,3.10959478,138.68,138.65,61.3]
[1765323473851,0.04959478,138.68,138.65,61.3]
[1765323475556,3.21959478,138.68,138.65,61.3]
[1765323476352,0.04959478,138.68,138.65,67.7905]
[1765323476550,3.21959478,138.68,138.65,67.7905]
[1765323480746,3.21959478,138.68,138.64,0.04645973]
[1765323481352,0.04959478,138.68,138.66,6.49]
[1765323481547,0.04959478,138.68,138.67,61.3]
[1765323481747,0.04959478,138.68,138.67,67.7897]
[1765323483851,0.04959478,138.68,138.67,129.7897]
[1765323487344,0.04959478,138.68,138.67,151.38053492]
[1765323487958,0.04959478,138.68,138.67,89.38053492]
[1765323490058,0.04959478,138.68,138.67,67.7897]
[1765323490753,0.04959478,138.68,138.67,6.4897]
[1765323490958,0.04959478,138.68,138.67,67.7897]
[1765323491255,0.04959478,138.68,138.67,6.4897]
[1765323491459,0.04959478,138.68,138.67,67.7897]
[1765323496864,0.04959478,138.68,138.67,70.3286125]
[1765323497257,3.14,138.77,138.69,100.9326]
[1765323497462,3.14,138.77,138.7,61.3]
[1765323498166,0.0547667,138.75,138.72,0.05114259]
[1765323498464,3.14,138.74,138.73,61.3]
[1765323499666,3.1947667,138.75,138.73,61.3]
[1765323502962,3.14,138.74,138.72,61.33114259]
[1765323504568,0.0547667,138.75,138.72,61.33114259]
[1765323505563,0.0547667,138.75,138.74,6.4864]
[1765323513672,3.1047667,138.75,138.72,6.53804259]
[1765323513973,3.1047667,138.75,138.73,61.28]
[1765323515277,0.0547667,138.75,138.73,67.7668]
[1765323516582,3.1047667,138.75,138.73,61.28]
[1765323517285,0.0547667,138.75,138.73,67.7668]
[1765323518684,3.1047667,138.75,138.73,61.28]
[1765323520288,0.0547667,138.75,138.73,67.7668]
[1765323526295,0.0547667,138.75,138.74,6.4864]
[1765323527994,3.1047667,138.75,138.73,61.28]
[1765323529198,3.1047667,138.75,138.73,67.7667]
[1765323529697,3.1047667,138.75,138.72,0.05114259]
[1765323529888,3.1047667,138.75,138.72,61.31114259]
[1765323531591,3.1047667,138.75,138.72,0.05114259]
[1765323531592,3.05,138.73,138.72,0.05114259]
[1765323531789,3.05,138.73,138.68,61.26]
[1765323532189,3.05,138.72,138.68,61.26]
[1765323532496,3.05,138.72,138.69,6.4886]
[1765323532694,3.10024656,138.72,138.69,6.54149859]
[1765323532995,3.10024656,138.72,138.69,0.05289859]
[1765323535397,0.05024656,138.72,138.7,6.4881]
[1765323535598,3.10024656,138.72,138.69,0.05289859]
[1765323540599,3.10024656,138.72,138.69,6.54149859]
[1765323542712,3.10024656,138.72,138.69,0.05289859]
[1765323542901,3.19,138.71,138.69,0.05289859]
[1765323543794,3.19,138.7,138.69,0.05289859]
[1765323547302,3.12,138.69,138.64,6.4908]
[1765323547506,3.12,138.69,138.64,61.28]
[1765323548320,3.12,138.67,138.65,0.05396853]
[1765323551411,9.6098,138.67,138.65,0.05396853]
[1765323551604,3.12,138.66,138.65,0.05396853]
[1765323553514,9.6101,138.66,138.65,0.05396853]
[1765323567921,3.12,138.64,138.59,61.32]
[1765323568123,3.12,138.62,138.59,61.32]
[1765323568324,3.12,138.6,138.59,61.32]
[1765323579932,3.12,138.6,138.58,0.05046176]
[1765323580133,9.6129,138.6,138.58,0.05046176]
[1765323586144,6.4929,138.6,138.58,0.05046176]
[1765323586337,3.15,138.59,138.58,0.05046176]
[1765323593152,11.86364957,138.6,138.58,0.05046176]
[1765323593355,11.86364957,138.6,138.59,61.34]
[1765323594458,11.86364957,138.6,138.59,67.8334]
[1765323600354,14.92364957,138.6,138.59,61.34]
[1765323600550,11.86364957,138.6,138.59,61.34]
[1765323601754,14.92364957,138.6,138.59,61.34]
[1765323606165,3.35,138.59,138.58,0.00046176]
[1765323607467,9.8434,138.59,138.58,0.00046176]
[1765323607867,3.35,138.59,138.58,0.00046176]
[1765323609273,9.8434,138.59,138.58,0.00046176]
[1765323612476,3.35,138.59,138.58,0.00046176]
[1765323614274,11.86364957,138.6,138.58,0.00046176]
[1765323615680,11.86364957,138.6,138.58,61.34046176]
[1765323615880,15.21364957,138.6,138.58,61.34046176]
[1765323616373,11.86364957,138.6,138.58,61.34046176]
[1765323618674,3.35,138.59,138.58,61.34046176]
[1765323620283,11.86364957,138.6,138.58,61.34046176]
[1765323620583,15.21364957,138.6,138.58,61.34046176]
[1765323629088,11.86364957,138.6,138.58,61.34046176]
[1765323629583,0.05433712,138.61,138.58,61.34046176]
[1765323631588,0.05433712,138.61,138.6,6.4929]
[1765323644293,0.05433712,138.61,138.58,61.34046176]
[1765323644594,3.32433712,138.61,138.58,61.32046176]
[1765323646093,0.05433712,138.61,138.58,61.32046176]
[1765323647196,0.05433712,138.61,138.59,6.4934]
[1765323647390,0.05433712,138.61,138.58,61.32046176]
[1765323648299,0.05433712,138.61,138.6,6.4929]
[1765323648892,11.9,138.66,138.63,9.03490444]
[1765323649094,11.9,138.66,138.64,61.32]
[1765323649802,11.95394509,138.66,138.64,61.37121608]
[1765323651099,11.95394509,138.66,138.64,67.86211608]
[1765323651290,9.48963771,138.66,138.64,67.86211608]
[1765323651596,9.48963771,138.66,138.65,2.54370444]
[1765323651999,9.48963771,138.66,138.65,64.54370444]
[1765323653208,9.48963771,138.66,138.65,62.0]
[1765323653701,9.48963771,138.66,138.65,61.32]
[1765323653702,12.75963771,138.66,138.65,61.32]
[1765323653906,9.48963771,138.66,138.65,61.32]
[1765323658612,12.75963771,138.66,138.65,61.32]
[1765323661010,3.32394509,138.66,138.65,61.32]
[1765323663016,3.32394509,138.66,138.64,0.05121608]
[1765323663810,3.06,138.65,138.64,0.05121608]
[1765323667535,9.5506,138.65,138.64,0.05121608]
[1765323672834,3.22,138.6,138.56,61.32]
[1765323673238,6.4924,138.62,138.56,67.8148]
[1765323673441,9.7124,138.62,138.56,67.8148]
[1765323673635,0.05452563,138.6,138.58,0.05258769]
[1765323674643,3.27452563,138.6,138.58,0.05258769]
[1765323678951,0.05452563,138.6,138.58,0.05258769]
[1765323686056,0.05452563,138.6,138.58,6.54638769]
[1765323687256,3.27452563,138.6,138.58,6.54638769]
[1765323688147,3.27452563,138.6,138.58,0.05258769]
[1765323689255,0.05452563,138.6,138.58,0.05258769]
[1765323690456,0.05452563,138.6,138.59,6.4934]
[1765323691357,162.2166,138.72,138.6,6.4929]
[1765323691358,3.11,138.67,138.6,6.4929]
[1765323691559,3.11,138.67,138.61,61.34]
[1765323692365,3.11,138.64,138.63,0.05475254]
[1765323692747,0.04688212,138.65,138.63,0.05475254]
[1765323693658,3.15688212,138.65,138.63,0.05475254]
[1765323694456,3.15688212,138.65,138.57,61.32]
[1765323695060,3.11,138.62,138.58,6.4934]
[1765323695361,3.11,138.62,138.57,61.32]
[1765323695550,0.05520965,138.61,138.58,0.04988378]
[1765323696152,3.16520965,138.61,138.58,0.04988378]
[1765323696653,3.16520965,138.61,138.59,6.4933]
[1765323697355,3.16520965,138.61,138.58,6.54378378]
[1765323697555,3.16520965,138.61,138.59,61.32]
[1765323698965,3.16520965,138.61,138.57,6.4943]
[1765323698966,3.11,138.54,138.47,13.44705608]
[1765323699155,3.11,138.54,138.47,61.32]
[1765323699755,3.11,138.52,138.47,61.32]
[1765323699954,101.0413,138.55,138.48,0.05175864]
[1765323699955,3.11,138.5,138.48,0.05175864]
[1765323700356,3.11,138.5,138.48,61.37175864]
[1765323710376,0.04813677,138.51,138.48,61.37175864]
[1765323712470,3.15813677,138.51,138.48,61.37175864]
[1765323712673,0.04813677,138.51,138.48,61.37175864]
[1765323713571,0.04813677,138.51,138.49,6.4979]
[1765323716475,0.04813677,138.51,138.48,61.37175864]
[1765323717274,0.04813677,138.51,138.48,0.05175864]
[1765323717576,0.04813677,138.51,138.49,61.36]
[1765323718078,0.04813677,138.51,138.48,6.55025864]
[1765323718466,0.04813677,138.51,138.49,61.36]
[1765323718873,0.04813677,138.51,138.48,6.55025864]
[1765323719070,0.04813677,138.51,138.49,61.36]
[1765323720375,0.04813677,138.51,138.48,6.55025864]
[1765323720566,0.04813677,138.51,138.49,61.36]
[1765323720766,0.04813677,138.51,138.48,6.55025864]
[1765323720966,0.04813677,138.51,138.49,61.36]
[1765323721263,0.04813677,138.51,138.48,0.05175864]
[1765323721264,3.37813677,138.51,138.48,0.05175864]
[1765323721465,3.37813677,138.51,138.49,61.36]
[1765323722675,0.04813677,138.51,138.49,61.36]
[1765323724873,0.04813677,138.51,138.49,67.8579]
[1765323728083,3.13813677,138.51,138.48,0.05175864]
[1765323728272,3.13813677,138.51,138.49,61.38]
[1765323728883,0.04813677,138.51,138.49,61.38]
[1765323737284,3.13813677,138.51,138.48,0.05175864]
[1765323740292,12.78813677,138.51,138.48,0.05175864]
[1765323740877,9.69813677,138.51,138.48,0.05175864]
[1765323741289,9.69813677,138.51,138.49,6.4981]
[1765323744893,9.69813677,138.51,138.5,6.4976]
[1765323755602,7.18238907,138.51,138.5,19.94465608]
[1765323756388,7.18238907,138.51,138.5,81.94465608]
[1765323760104,7.18238907,138.51,138.5,143.30465608]
[1765323764305,7.18238907,138.51,138.5,129.8576]
[1765323768712,7.18238907,138.51,138.5,143.30465608]
[1765323769508,6.4947,138.57,138.5,143.30465608]
[1765323769509,3.24,138.59,138.51,101.0627]
[1765323769714,3.24,138.59,138.53,16.02090338]
[1765323769920,3.24,138.59,138.54,61.36]
[1765323770622,3.24,138.57,138.55,0.04662195]
[1765323770805,3.24,138.57,138.56,61.36]
[1765323771208,3.24,138.56,138.55,0.04662195]
[1765323771409,3.24,138.56,138.55,61.40662195]
[1765323772816,3.24,138.56,138.55,0.04662195]
[1765323773029,3.24,138.56,138.55,61.40662195]
[1765323774111,3.24,138.56,138.55,0.04662195]
[1765323774312,3.24,138.56,138.55,61.36]
[1765323781928,3.35565902,138.58,138.55,61.36]
[1765323783527,3.35565902,138.58,138.55,67.8553]
[1765323789727,3.35565902,138.58,138.56,61.36]
[1765323791040,3.35565902,138.58,138.55,6.4953]
[1765323791329,3.35565902,138.58,138.56,61.36]
[1765323791829,3.35565902,138.58,138.56,67.8547]
[1765323791830,0.04565902,138.58,138.56,67.8547]
[1765323802030,0.04565902,138.58,138.56,6.4947]
[1765323802340,0.04565902,138.58,138.57,61.34]
[1765323806248,0.04565902,138.58,138.56,6.4947]
[1765323806440,0.04565902,138.58,138.57,61.34]
[1765323808949,0.04565902,138.58,138.57,67.8343]
[1765323819357,0.04565902,138.58,138.57,6.4943]
[1765323819557,3.36565902,138.58,138.56,61.34]
[1765323820559,3.32,138.57,138.56,61.34]
[1765323823464,3.32,138.57,138.54,0.05421083]
[1765323823465,3.32,138.57,138.55,6.4953]
[1765323823662,3.32,138.57,138.56,61.34]
[1765323827864,3.32,138.57,138.54,0.05421083]
[1765323828065,3.32,138.57,138.55,61.34]
[1765323829063,0.04565902,138.58,138.55,67.8351]
[1765323829265,0.04565902,138.58,138.55,61.34]
[1765323829667,0.04565902,138.58,138.55,123.34]
[1765323829859,0.04565902,138.58,138.56,6.4944]
[1765323831668,0.04565902,138.58,138.57,6.4943]
[1765323836472,3.36565902,138.58,138.56,6.4948]
[1765323838590,3.36565902,138.58,138.55,67.8353]
[1765323838979,3.32,138.57,138.55,61.34]
[1765323839585,3.21,138.56,138.54,0.05421083]
[1765323839785,3.21,138.56,138.55,61.34]
[1765323840482,9.7048,138.56,138.55,61.34]
[1765323841383,9.7053,138.55,138.54,0.05421083]
[1765323855393,3.19,138.53,138.52,58.0]
[1765323857096,0.04917569,138.54,138.52,58.0]
[1765323857295,3.23917569,138.54,138.52,58.0]
[1765323865297,9.73497569,138.54,138.52,58.0]
[1765323866992,0.04917569,138.54,138.52,58.0]
[1765323868504,6.54497569,138.54,138.52,58.0]
[1765323872202,0.04917569,138.54,138.52,58.0]
[1765323873198,0.04917569,138.54,138.52,64.4965]
[1765323878008,3.36917569,138.54,138.52,64.4965]
[1765323884804,0.04917569,138.54,138.52,64.4965]
[1765323885316,0.04917569,138.54,138.53,6.4962]
[1765323885915,0.04917569,138.54,138.52,64.4966]
[1765323889516,3.36917569,138.54,138.52,58.0]
[1765323890021,0.04917569,138.54,138.52,58.0]
[1765323898628,0.04917569,138.54,138.53,61.36]
[1765323900044,3.26,138.53,138.51,0.04868184]
[1765323900233,3.26,138.53,138.51,61.40868184]
[1765323900642,3.26,138.51,138.45,13.47304178]
[1765323900834,3.26,138.5,138.46,61.36]
[1765323901235,3.26,138.49,138.46,61.36]
[1765323901642,3.26,138.49,138.46,61.41541885]
[1765323901843,3.30984321,138.49,138.46,61.41541885]
[1765323902441,9.80794321,138.49,138.46,61.41541885]
[1765323903140,3.26,138.47,138.46,61.41541885]
[1765323903346,6.4986,138.48,138.46,61.41541885]
[1765323903543,9.7586,138.48,138.46,61.41541885]
[1765323903940,3.30984321,138.49,138.46,61.41541885]
[1765323904544,0.04984321,138.49,138.46,61.41541885]
[1765323905048,0.04984321,138.49,138.47,6.4989]
[1765323906847,0.04984321,138.49,138.46,61.41541885]
[1765323907650,0.04984321,138.49,138.47,61.38]
[1765323910155,3.26984321,138.49,138.47,61.38]
[1765323910650,0.04984321,138.49,138.47,61.38]
[1765323916461,3.22,138.48,138.47,61.38]
[1765323918456,9.7186,138.48,138.47,61.38]
[1765323918856,3.22,138.47,138.46,0.05541885]
[1765323919250,9.719,138.47,138.46,0.05541885]
[1765323923258,3.22,138.44,138.43,61.38]
[1765323932372,6.55468473,138.45,138.43,61.38]
[1765323935582,0.05438473,138.45,138.43,61.38]
[1765323940183,0.05438473,138.45,138.43,67.8809]
[1765323946290,0.05438473,138.45,138.43,61.38]
[1765323947793,0.05438473,138.45,138.42,6.5501609]
[1765323948092,3.33,138.44,138.42,61.4487609]
[1765323948285,9.88438473,138.45,138.42,61.4487609]
[1765323948593,9.88438473,138.45,138.42,0.0487609]
[1765323948594,3.33,138.43,138.42,0.0487609]
[1765323948794,9.8305,138.44,138.42,61.4487609]
[1765323951498,9.8305,138.44,138.42,0.0487609]
[1765323951708,6.5009,138.43,138.42,0.0487609]
[1765323951887,9.8309,138.43,138.42,0.0487609]
[1765323958389,0.05438473,138.45,138.36,68.5037]
[1765323958390,3.33,138.4,138.36,67.9237]
[1765323958595,3.33,138.4,138.36,61.42]
[1765323959512,0.05001844,138.39,138.37,6.55729434]
[1765323959797,3.27001844,138.39,138.37,0.05359434]
[1765323960101,9.7233,138.38,138.37,0.05359434]
[1765323965400,3.22,138.35,138.33,61.42]
[1765323966606,3.26989955,138.35,138.33,61.46751328]
[1765323969811,3.26989955,138.35,138.33,0.04751328]
[1765323970719,3.06,138.34,138.33,0.04751328]
[1765323973121,6.55459955,138.35,138.33,0.04751328]
[1765323973625,9.61459955,138.35,138.33,0.04751328]
[1765323977125,9.5651,138.34,138.33,0.04751328]
[1765323981229,3.06,138.34,138.33,0.04751328]
[1765323981432,0.04989955,138.35,138.33,0.04751328]
[1765323983934,3.10989955,138.35,138.33,0.04751328]
[1765323986630,9.5651,138.34,138.33,0.04751328]
[1765323987837,3.06,138.39,138.33,0.04751328]
[1765323988235,6.5033,138.38,138.34,67.9647]
[1765323988541,3.06,138.38,138.34,61.46]
[1765323989038,3.11263885,138.37,138.34,61.46]
[1765323989337,3.11263885,138.37,138.34,61.51492423]
[1765323989532,3.25,138.36,138.34,61.51492423]
[1765323990232,3.25,138.35,138.34,61.51492423]
[1765323991539,9.7547,138.35,138.34,61.51492423]
[1765323994738,3.25,138.36,138.34,61.51492423]
[1765323994936,9.80673885,138.37,138.34,61.51492423]
[1765323995131,3.25,138.36,138.34,61.51492423]
[1765323995332,3.25,138.35,138.34,61.51492423]
[1765323998138,9.7542,138.36,138.34,61.51492423]
[1765323998331,6.5042,138.36,138.34,61.51492423]
[1765323998532,9.7542,138.36,138.34,61.51492423]
[1765323999544,0.05263885,138.37,138.34,61.51492423]
[1765324000443,0.05263885,138.37,138.34,68.02002423]